bitfinex-derivatives/quotes_ETHF0:USTF0_20251008
["timestamp","ask_amount","ask_price","bid_price","bid_amount"]
[1759961868822,4.68209031,4529.7,4529.6,4.13960896]
[1759961869123,1.14072,4530.1,4530.0,0.94272]
[1759961869323,1.36172,4530.1,4530.0,1.27842]
[1759961869523,4.18078108,4530.1,4530.0,1.27842]
[1759961869821,3.78356108,4530.1,4530.0,1.15292]
[1759961870922,3.78356108,4530.1,4530.0,1.27842]
[1759961871318,3.25946108,4530.1,4530.0,1.27842]
[1759961872620,3.25946108,4530.1,4530.0,0.8812]
[1759961872818,3.56256108,4530.1,4530.0,0.8812]
[1759961873018,3.78356108,4530.1,4530.0,0.8812]
[1759961873220,3.78356108,4530.1,4530.0,0.2102]
[1759961873221,4.58384224,4530.1,4530.0,0.2102]
[1759961873419,4.58384224,4530.1,4529.8,0.39724]
[1759961873420,0.7435,4529.9,4529.8,0.92924]
[1759961873620,0.9645,4529.9,4529.8,0.92924]
[1759961873928,0.39724,4529.8,4529.6,3.21034896]
[1759961874115,1.76478116,4529.7,4529.6,3.21034896]
[1759961874315,4.66782803,4529.7,4529.6,3.21034896]
[1759961875824,4.66782803,4529.7,4529.6,3.96604896]
[1759961876026,3.54894687,4529.7,4529.6,3.96604896]
[1759961876225,3.32794687,4529.7,4529.6,3.96604896]
[1759961876425,3.86754687,4529.7,4529.6,3.96604896]
[1759961877934,4.26479687,4529.7,4529.6,3.96604896]
[1759961878434,4.26479687,4529.7,4529.6,4.36330896]
[1759961879233,4.26479687,4529.7,4529.6,3.96604896]
[1759961879830,4.26479687,4529.7,4529.6,4.36330896]
[1759961880032,4.26479687,4529.7,4529.6,3.96604896]
[1759961880436,3.86754687,4529.7,4529.6,3.96604896]
[1759961880631,5.06507803,4529.7,4529.6,3.96604896]
[1759961881634,5.06507803,4529.7,4529.6,3.74234896]
[1759961882032,5.06507803,4529.7,4529.6,4.13960896]
[1759961882033,4.84407803,4529.7,4529.6,4.13960896]
[1759961882232,5.06507803,4529.7,4529.6,3.74234896]
[1759961883136,4.04379687,4529.7,4529.6,3.74234896]
[1759961883335,5.06507803,4529.7,4529.6,3.74234896]
[1759961884333,4.66782803,4529.7,4529.6,4.36330896]
[1759961884733,3.32794687,4529.7,4529.6,4.36330896]
[1759961884933,3.34344687,4529.7,4529.6,4.36330896]
[1759961885133,3.51969687,4529.7,4529.6,4.36330896]
[1759961885334,3.74069687,4529.7,4529.6,4.36330896]
[1759961885535,4.05929687,4529.7,4529.6,4.36330896]
[1759961885735,4.05929687,4529.7,4529.6,3.96604896]
[1759961885936,4.26479687,4529.7,4529.6,4.36330896]
[1759961886739,3.94619687,4529.7,4529.6,4.36330896]
[1759961886939,0.83765,4529.7,4529.6,4.36330896]
[1759961887936,0.4404,4529.7,4529.6,4.36330896]
[1759961888136,0.39721,4530.2,4529.8,0.4339]
[1759961888444,3.53942417,4530.4,4530.3,0.4339]
[1759961888635,3.76042417,4530.4,4530.3,0.7516]
[1759961889034,4.07672417,4530.4,4530.3,0.7516]
[1759961889439,4.29762417,4530.4,4530.3,0.7516]
[1759961890538,0.39721,4530.2,4530.1,3.2078]
[1759961890741,2.18069116,4530.2,4530.1,3.4344]
[1759961890948,2.18069116,4530.2,4530.1,3.7521]
[1759961891140,5.05626811,4530.2,4530.1,3.4344]
[1759961891344,5.05626811,4530.2,4530.1,3.2078]
[1759961891741,4.83526811,4530.2,4530.1,3.2078]
[1759961891945,5.05626811,4530.2,4530.1,3.2078]
[1759961892145,5.05626811,4530.2,4530.1,3.7521]
[1759961893144,5.05626811,4530.2,4530.1,3.9661]
[1759961893849,3.32147695,4530.2,4530.1,4.36332]
[1759961894050,3.54247695,4530.2,4530.1,4.36332]
[1759961894446,4.25598695,4530.2,4530.1,3.9661]
[1759961895953,0.3972,4530.3,4530.2,0.7583]
[1759961896153,0.6222,4530.3,4530.2,0.7583]
[1759961897656,0.225,4530.3,4530.2,0.7583]
[1759961899758,0.221,4530.4,4530.3,0.7583]
[1759961899949,1.15934,4531.0,4530.9,0.7583]
[1759961900245,1.38034,4531.0,4530.9,3.9661]
[1759961900449,4.2212878,4531.0,4530.9,3.9661]
[1759961901054,3.6840878,4531.0,4530.9,3.9661]
[1759961901254,3.2869478,4531.0,4530.9,4.36325]
[1759961901444,0.225,4531.0,4530.9,4.36325]
[1759961901646,0.221,4531.0,4530.9,3.9661]
[1759961902755,0.61814,4531.0,4530.9,4.36325]
[1759961903144,0.39714,4531.0,4530.9,4.36325]
[1759961903453,0.61814,4531.0,4530.9,4.36325]
[1759961904050,0.39714,4531.0,4530.9,4.36325]
[1759961905855,1.15929,4531.6,4531.5,0.7583]
[1759961906059,1.15929,4531.6,4531.5,1.2889]
[1759961906256,3.92454209,4531.6,4531.5,1.2889]
[1759961907254,3.92454209,4531.6,4531.5,4.4967]
[1759961907449,3.48264209,4531.6,4531.5,4.4967]
[1759961907651,0.62208,4531.7,4531.6,0.7583]
[1759961907850,1.15928,4531.7,4531.6,0.7583]
[1759961909057,0.39713,4531.1,4531.0,0.3177]
[1759961909258,0.7622,4531.0,4530.9,0.84474]
[1759961909462,1.15934,4531.0,4530.9,0.7653]
[1759961909966,1.15935,4530.9,4530.8,3.2078]
[1759961910155,1.38035,4530.9,4530.8,3.2078]
[1759961910356,4.18491554,4530.9,4530.8,3.2078]
[1759961910655,0.7622,4530.4,4530.3,3.2078]
[1759961910856,0.7622,4529.9,4529.8,3.2078]
[1759961911051,1.56248116,4529.9,4529.8,3.2078]
[1759961911256,4.46497986,4529.9,4529.8,3.2078]
[1759961911460,4.46497986,4529.9,4529.8,3.4344]
[1759961911663,4.46497986,4529.9,4529.8,3.7521]
[1759961911960,3.6646987,4529.9,4529.8,3.7521]
[1759961914362,3.6646987,4529.9,4529.8,3.2078]
[1759961915567,3.6646987,4529.9,4529.8,3.4344]
[1759961915766,3.6646987,4529.9,4529.8,3.7521]
[1759961917461,3.6646987,4529.9,4529.8,3.4344]
[1759961917668,3.6646987,4529.9,4529.8,3.2078]
[1759961918868,4.0619387,4529.9,4529.8,3.2078]
[1759961919667,4.0619387,4529.9,4529.6,0.00254896]
[1759961919668,0.83175,4529.7,4529.6,0.00254896]
[1759961919973,5.09545932,4529.7,4529.6,0.00254896]
[1759961923273,10.55618457,4529.7,4529.6,0.00254896]
[1759961924376,10.09545932,4529.7,4529.6,0.00254896]
[1759961926565,9.87445932,4529.7,4529.6,0.00254896]
[1759961926767,10.09545932,4529.7,4529.6,0.00254896]
[1759961928068,9.87445932,4529.7,4529.6,0.00254896]
[1759961928269,10.09545932,4529.7,4529.6,0.00254896]
[1759961932378,0.4344,4528.9,4528.8,3.2078]
[1759961932578,1.91832058,4528.9,4528.8,3.2078]
[1759961932779,4.73812953,4528.9,4528.8,3.2078]
[1759961933079,5.13544953,4528.9,4528.8,3.2078]
[1759961933380,5.13816947,4528.9,4528.8,3.20993414]
[1759961942870,5.60287271,4528.9,4528.8,3.20993414]
[1759961943081,5.60287271,4528.9,4528.8,0.00213414]
[1759961944175,3.59312889,4528.9,4528.8,1.15526414]
[1759961944381,3.81412889,4528.9,4528.8,1.15526414]
[1759961944573,3.99044889,4528.9,4528.8,0.75793414]
[1759961944778,4.21144889,4528.9,4528.8,1.15526414]
[1759961945079,4.21144889,4528.9,4528.8,0.75793414]
[1759961945279,4.21144889,4528.9,4528.8,0.54343414]
[1759961945985,5.13816947,4528.9,4528.8,0.00213414]
[1759961946385,5.60312938,4528.9,4528.8,0.00213414]
[1759961954781,5.20580938,4528.9,4528.8,0.53423414]
[1759961954983,4.2790888,4528.9,4528.8,0.75363414]
[1759961955182,3.2078,4529.4,4528.8,9.35876414]
[1759961955377,0.2261,4529.4,4529.3,0.83779]
[1759961955581,0.4471,4529.4,4529.3,0.83779]
[1759961955783,1.23686864,4529.4,4529.3,1.14879]
[1759961955981,0.91266864,4529.4,4529.3,1.14879]
[1759961956383,0.91493874,4529.4,4529.3,1.14879]
[1759961956783,0.4493701,4529.4,4529.3,1.14879]
[1759961956985,0.4493701,4529.4,4529.3,4.35659]
[1759961957389,0.2232701,4529.4,4529.3,4.35659]
[1759961957685,0.4493701,4529.4,4529.3,3.9593]
[1759961958389,5.21512819,4529.4,4529.3,3.2078]
[1759961958591,5.21512819,4529.4,4529.3,3.7399]
[1759961958989,4.99412819,4529.4,4529.3,3.9593]
[1759961959184,4.06740761,4529.4,4529.3,3.9593]
[1759961959491,0.0022701,4529.4,4529.3,8.9593]
[1759961960291,0.0022701,4529.4,4529.3,10.14811246]
[1759961962194,0.0022701,4529.4,4529.3,8.9593]
[1759961970102,0.0022701,4529.4,4529.3,9.35659]
[1759961970600,0.3995501,4529.4,4529.3,9.35659]
[1759961975599,0.0022701,4529.4,4529.3,9.35659]
[1759961975800,0.0022701,4529.4,4529.3,10.54540246]
[1759961975996,1.63514068,4529.4,4529.3,10.14811246]
[1759961976201,1.95934068,4529.4,4529.3,3.9593]
[1759961976699,1.95934068,4529.4,4529.3,3.7399]
[1759961978004,1.95934068,4529.4,4529.3,3.4289]
[1759961978198,0.62342,4528.9,4528.8,3.20993414]
[1759961978505,1.15622,4528.9,4528.8,3.20993414]
[1759961978800,1.15622,4528.9,4528.8,3.74813414]
[1759961979797,0.2261,4528.9,4528.8,4.36896414]
[1759961980599,1.02699058,4528.9,4528.8,4.36896414]
[1759961980804,1.57259058,4528.9,4528.8,3.97163414]
[1759961981007,1.96991058,4528.9,4528.8,3.97163414]
[1759961981305,1.96991058,4528.9,4528.8,4.36896414]
[1759961981505,1.75711058,4528.9,4528.8,4.36896414]
[1759961981800,1.96991058,4528.9,4528.8,4.36896414]
[1759961982011,1.96991058,4528.9,4528.8,3.97163414]
[1759961982299,1.96991058,4528.9,4528.8,3.74813414]
[1759961982502,1.96991058,4528.9,4528.8,3.43473414]
[1759961982698,1.96991058,4528.9,4528.8,3.75473414]
[1759961983105,1.96991058,4528.9,4528.8,3.97583414]
[1759961985510,0.39732,4528.9,4528.8,4.37316414]
[1759961985702,0.39732,4528.9,4528.8,5.5619766]
[1759961986103,0.62342,4528.9,4528.8,5.5619766]
[1759961986302,0.62342,4528.9,4528.8,4.37316414]
[1759961986704,0.80089058,4529.2,4528.8,3.65583414]
[1759961986911,0.3995501,4529.4,4529.3,1.14799]
[1759961987110,0.0022701,4529.4,4529.3,4.35579]
[1759961987413,0.0022701,4529.4,4529.3,4.57679]
[1759961987611,0.0022701,4529.4,4529.3,5.76560246]
[1759961988108,0.0022701,4529.4,4529.3,4.57679]
[1759961988907,0.39722,4530.1,4530.0,1.27462]
[1759961989310,0.39722,4530.1,4530.0,0.8774]
[1759961989914,0.62332,4530.1,4530.0,0.8774]
[1759961990214,0.62549999,4530.1,4530.0,0.8774]
[1759961991614,1.17799999,4530.1,4530.0,0.7507]
[1759961995918,1.17799999,4530.1,4530.0,0.8774]
[1759961996119,1.97889057,4530.1,4530.0,0.8774]
[1759962001021,0.80307057,4530.1,4530.0,1.27463]
[1759962002417,1.42639057,4530.1,4530.0,0.8774]
[1759962002719,1.97889057,4530.1,4530.0,0.8774]
[1759962003119,1.97889057,4530.1,4530.0,1.27463]
[1759962003721,1.65159057,4530.1,4530.0,1.27463]
[1759962004118,1.65159057,4530.1,4530.0,0.8774]
[1759962004518,1.97889057,4530.1,4530.0,0.8774]
[1759962004722,1.97889057,4530.1,4530.0,0.7507]
[1759962004918,1.97889057,4530.1,4530.0,0.5296]
[1759962005122,1.17584,4529.9,4529.8,3.4288]
[1759962005331,1.17584,4529.9,4529.8,3.2078]
[1759962005626,4.25734827,4529.9,4529.8,3.2078]
[1759962005820,0.84856,4529.6,4529.5,0.7506]
[1759962006021,1.97675058,4529.6,4529.5,0.7506]
[1759962006620,1.97675058,4529.6,4529.5,0.5296]
[1759962006815,0.39728,4529.4,4529.3,3.4174]
[1759962007021,1.17588,4529.4,4529.3,3.7374]
[1759962007220,1.17588,4529.4,4529.3,3.9585]
[1759962007927,4.00975731,4529.4,4529.3,3.9585]
[1759962012634,3.90345731,4529.4,4529.3,3.9585]
[1759962013129,4.21845731,4529.4,4529.3,3.9585]
[1759962014437,4.21845731,4529.4,4529.3,4.35579]
[1759962014637,3.90345731,4529.4,4529.3,4.35579]
[1759962014833,0.39726,4529.8,4529.7,0.39725]
[1759962015030,0.39726,4529.8,4529.7,1.16635]
[1759962015839,0.39726,4529.8,4529.7,0.7691]
[1759962016236,0.39726,4529.8,4529.7,1.16635]
[1759962018241,0.39726,4529.8,4529.7,0.7691]
[1759962019347,0.39726,4529.8,4529.7,1.16635]
[1759962021546,0.80089058,4530.0,4529.9,0.7691]
[1759962021741,0.46408618,4530.0,4529.9,4.37414]
[1759962022037,0.39939999,4530.1,4530.0,1.28943]
[1759962027049,0.39939999,4530.1,4530.0,4.49723]
[1759962032851,0.92959999,4530.1,4530.0,4.49723]
[1759962033052,1.15129999,4530.1,4530.0,3.7678]
[1759962033452,1.15129999,4530.1,4530.0,3.9769]
[1759962034358,1.15129999,4530.1,4530.0,4.1]
[1759962035356,1.15129999,4530.1,4530.0,3.7678]
[1759962035756,1.15129999,4530.1,4530.0,4.49723]
[1759962035957,0.83629999,4530.1,4530.0,4.49723]
[1759962037358,0.00217999,4530.1,4530.0,4.49723]
[1759962037552,0.39939999,4530.1,4530.0,4.49723]
[1759962039062,0.00217999,4530.1,4530.0,4.49723]
[1759962039251,1.91949358,4531.1,4530.9,0.433]
[1759962039252,3.81444,4531.0,4530.9,0.433]
[1759962039457,4.49940102,4531.0,4530.9,0.7599]
[1759962039651,7.16576323,4531.0,4530.9,0.7599]
[1759962040353,7.72483646,4531.0,4530.9,0.7599]
[1759962042674,4.51703646,4531.0,4530.9,0.7599]
[1759962044370,4.73803646,4531.0,4530.9,0.7599]
[1759962045963,4.86753646,4531.0,4530.5,3.336]
[1759962046268,1.14647,4530.6,4530.5,3.7392]
[1759962047868,1.14647,4530.6,4530.5,3.9516]
[1759962048070,0.2229,4530.6,4530.5,4.47748]
[1759962048970,0.62007,4530.6,4530.5,4.47748]
[1759962049967,0.39715,4530.9,4530.5,4.0803]
[1759962050160,0.39891323,4531.0,4530.9,0.7438]
[1759962052471,0.00177323,4531.0,4530.9,1.14095]
[1759962053268,0.39891323,4531.0,4530.9,0.7438]
[1759962053464,0.39891323,4531.0,4530.9,1.14095]
[1759962053865,0.39891323,4531.0,4530.9,0.7438]
[1759962054870,1.14821323,4531.0,4530.9,0.7438]
[1759962056272,1.14821323,4531.0,4530.9,1.14095]
[1759962056469,0.39891323,4531.0,4530.9,1.14095]
[1759962058168,0.62181323,4531.0,4530.9,0.7438]
[1759962058474,1.14821323,4531.0,4530.9,0.7438]
[1759962060971,0.75107323,4531.0,4530.9,1.14095]
[1759962061177,1.14821323,4531.0,4530.9,1.14095]
[1759962061473,1.14821323,4531.0,4530.9,0.7438]
[1759962062771,1.14821323,4531.0,4530.9,1.14095]
[1759962063973,1.14821323,4531.0,4530.9,0.7438]
[1759962064669,1.14821323,4531.0,4530.9,0.5314]
[1759962064875,1.27771323,4531.0,4530.9,0.5314]
[1759962065174,0.83667,4530.7,4530.6,0.5314]
[1759962065375,2.07311358,4530.7,4530.6,0.5314]
[1759962065575,0.83667,4530.6,4530.5,3.2078]
[1759962065765,1.14647,4530.6,4530.5,3.2078]
[1759962066575,1.14647,4530.6,4530.5,3.7392]
[1759962068174,0.7493,4530.6,4530.5,4.13638]
[1759962068370,1.14647,4530.6,4530.5,4.34878]
[1759962068580,1.14647,4530.6,4530.5,3.9516]
[1759962069370,1.60914895,4530.6,4530.5,3.9516]
[1759962069976,4.47196061,4530.6,4530.5,3.7392]
[1759962070781,4.47196061,4530.6,4530.5,3.414]
[1759962072177,4.47196061,4530.6,4530.5,3.733]
[1759962073178,4.47196061,4530.6,4530.5,3.2078]
[1759962073473,0.39725,4529.7,4529.6,3.2078]
[1759962073776,2.08969358,4529.7,4529.6,3.7532]
[1759962074771,2.08969358,4529.7,4529.6,3.2078]
[1759962075175,0.84106,4529.6,4529.5,0.4474]
[1759962075371,0.84106,4529.6,4529.5,0.7664]
[1759962075372,1.16306,4529.6,4529.5,0.7664]
[1759962075576,1.16306,4529.6,4529.5,0.5454]
[1759962076280,0.7658,4529.6,4529.5,1.15937]
[1759962076581,1.16302,4530.1,4530.0,0.7621]
[1759962076769,1.38402,4530.1,4530.0,0.7621]
[1759962076976,4.24224019,4530.1,4530.0,0.7621]
[1759962077373,4.02124019,4530.1,4530.0,0.7621]
[1759962077579,4.24224019,4530.1,4530.0,0.7621]
[1759962077984,4.20076,4530.6,4530.4,0.4431]
[1759962077985,0.94118,4530.5,4530.4,0.4431]
[1759962078182,1.84592086,4530.5,4530.4,0.7621]
[1759962078382,4.24375344,4530.5,4530.4,0.7621]
[1759962078790,4.02275344,4530.5,4530.4,0.7621]
[1759962078985,4.24375344,4530.5,4530.4,0.7621]
[1759962085686,4.37975344,4530.5,4530.4,0.5454]
[1759962087091,0.00177323,4531.0,4530.9,1.15925]
[1759962087294,3.7518,4532.1,4532.0,0.5757]
[1759962087490,0.222,4532.1,4532.0,0.8947]
[1759962087792,3.29957597,4532.1,4532.0,0.8947]
[1759962087986,3.7518,4532.6,4532.5,0.8947]
[1759962088183,3.21051354,4532.6,4532.5,0.89673627]
[1759962088386,0.00271354,4532.6,4532.5,0.89673627]
[1759962093788,0.76851354,4532.6,4532.5,0.76413627]
[1759962093990,1.56842962,4532.6,4532.5,0.89673627]
[1759962094291,0.00271354,4532.6,4532.5,0.89673627]
[1759962094887,0.22471354,4532.6,4532.5,0.89673627]
[1759962095089,0.54671354,4532.6,4532.5,0.89673627]
[1759962095283,0.76851354,4532.6,4532.5,0.89673627]
[1759962095487,0.76851354,4532.6,4532.5,0.76413627]
[1759962096189,0.76851354,4532.6,4532.5,0.89673627]
[1759962098390,0.22471354,4532.6,4532.5,0.89673627]
[1759962101597,0.00271354,4532.6,4532.5,0.89673627]
[1759962101896,0.00271354,4532.6,4532.5,1.11773627]
[1759962102095,0.00271354,4532.6,4532.5,1.51474627]
[1759962102298,0.22841354,4532.6,4532.5,1.51474627]
[1759962102690,0.56401354,4532.6,4532.5,1.51474627]
[1759962103492,1.17651354,4532.6,4532.5,1.51474627]
[1759962103687,1.17651354,4532.6,4532.5,0.98513627]
[1759962103991,1.17651354,4532.6,4532.5,1.38214627]
[1759962104192,1.17651354,4532.6,4532.5,1.51454627]
[1759962105700,1.17651354,4532.6,4532.5,1.38214627]
[1759962109702,0.77951354,4532.6,4532.5,1.38214627]
[1759962109905,0.77951354,4532.6,4532.5,1.51454627]
[1759962112109,1.17651354,4532.6,4532.5,1.51454627]
[1759962112720,0.77951354,4532.6,4532.5,1.51454627]
[1759962117319,0.2155,4532.6,4532.5,1.51454627]
[1759962117519,0.4337,4532.6,4532.5,1.51454627]
[1759962118122,0.4337,4532.6,4532.5,2.70076801]
[1759962118325,4.03846,4533.1,4533.0,1.28106]
[1759962118522,4.04098681,4533.1,4533.0,1.28106]
[1759962118717,6.93747548,4533.1,4533.0,1.28106]
[1759962119321,0.2463,4532.6,4532.5,0.00203627]
[1759962119518,0.68,4532.0,4531.9,0.79175119]
[1759962119713,0.83077,4531.8,4531.7,1.11855119]
[1759962119917,1.54050508,4531.8,4531.7,0.3268]
[1759962120221,4.36228916,4531.8,4531.7,0.3268]
[1759962120422,4.36228916,4531.8,4531.4,1.18622174]
[1759962120423,1.0771,4531.5,4531.4,0.3268]
[1759962120924,3.97885341,4531.5,4531.4,0.3290294]
[1759962121520,4.77876949,4531.5,4531.4,0.3290294]
[1759962121722,4.77876949,4531.5,4531.4,0.0022294]
[1759962121921,5.2418252,4531.5,4531.4,0.0022294]
[1759962122419,4.84676949,4531.5,4531.4,0.0022294]
[1759962122619,5.30952044,4531.5,4531.4,0.0022294]
[1759962122822,10.30952044,4531.5,4531.4,0.0022294]
[1759962123720,9.50960436,4531.5,4531.4,0.0022294]
[1759962123926,3.33545341,4531.5,4531.4,0.7539294]
[1759962124124,4.01884611,4531.5,4531.4,0.7539294]
[1759962124332,3.55645341,4531.5,4531.4,0.7539294]
[1759962129027,3.33545341,4531.5,4531.4,0.7539294]
[1759962129230,3.55645341,4531.5,4531.4,0.7539294]
[1759962130032,3.80255341,4531.5,4531.4,0.7539294]
[1759962130426,3.58155341,4531.5,4531.4,0.7539294]
[1759962130626,3.80255341,4531.5,4531.4,0.7539294]
[1759962131234,4.19965341,4531.5,4531.4,0.7539294]
[1759962132035,7.40745341,4531.5,4531.4,0.3290294]
[1759962132226,7.47525341,4531.5,4531.4,0.0022294]
[1759962136838,7.18645341,4531.5,4531.4,0.5394294]
[1759962137039,2.90175341,4531.5,4531.4,1.1545294]
[1759962137244,0.60357,4531.9,4531.8,0.4357]
[1759962137441,0.82457,4531.9,4531.8,0.7552]
[1759962137640,3.70988228,4531.9,4531.8,0.7552]
[1759962138338,3.92538228,4531.9,4531.8,0.7552]
[1759962138540,3.28238228,4531.9,4531.8,0.7552]
[1759962138845,4.11272836,4531.9,4531.8,0.7552]
[1759962143447,3.60478,4532.8,4532.7,0.5372]
[1759962143745,0.60348,4532.8,4532.7,0.7552]
[1759962143947,2.81594444,4532.8,4532.7,0.7552]
[1759962144150,0.00252681,4533.1,4533.0,0.8885]
[1759962144343,0.00252681,4533.1,4533.0,1.28546]
[1759962146648,0.20902681,4533.1,4533.0,1.28546]
[1759962146844,0.20902681,4533.1,4533.0,0.8885]
[1759962147346,0.42452681,4533.1,4533.0,0.8885]
[1759962150445,0.00252681,4533.1,4533.0,0.8885]
[1759962151854,0.20902681,4533.1,4533.0,1.28546]
[1759962153954,0.00252681,4533.1,4533.0,1.28546]
[1759962154862,0.20902681,4533.1,4533.0,1.28546]
[1759962155253,0.00252681,4533.1,4533.0,1.28546]
[1759962155955,0.00252681,4533.1,4533.0,3.28546]
[1759962159059,0.22392681,4533.1,4533.0,3.28546]
[1759962160157,0.62088681,4533.1,4533.0,3.28546]
[1759962160756,10.07497489,4533.1,4533.0,1.68015668]
[1759962160962,10.54079319,4533.1,4533.0,1.68015668]
[1759962161559,0.83013,4532.2,4532.1,0.3301]
[1759962161759,2.00121031,4532.2,4532.1,0.3301]
[1759962162062,4.87133336,4532.2,4532.1,0.3301]
[1759962164461,2.87012305,4532.2,4532.1,0.7429]
[1759962165264,3.4181,4532.9,4532.8,0.7366]
[1759962165460,4.10553547,4532.9,4532.8,0.7366]
[1759962165666,7.22525744,4532.9,4532.8,0.7366]
[1759962165962,6.93479197,4532.9,4532.8,0.7366]
[1759962166166,7.15579197,4532.9,4532.8,0.7366]
[1759962166458,7.40229197,4532.9,4532.8,0.7366]
[1759962166765,7.86895407,4532.9,4532.8,0.5297]
[1759962168759,7.62245407,4532.9,4532.8,0.5297]
[1759962168962,7.86895407,4532.9,4532.8,0.5297]
[1759962174364,7.62245407,4532.9,4532.8,0.5297]
[1759962175772,7.86895407,4532.9,4532.8,0.5297]
[1759962177570,7.62245407,4532.9,4532.8,0.5297]
[1759962177767,7.00448407,4532.9,4532.8,0.7366]
[1759962177970,7.22548407,4532.9,4532.8,0.7366]
[1759962179076,7.15579197,4532.9,4532.8,1.13358]
[1759962179875,6.75882197,4532.9,4532.8,1.13358]
[1759962180077,6.53282197,4532.9,4532.8,1.13358]
[1759962180284,0.00252681,4533.1,4533.0,1.26236]
[1759962180774,0.39694,4533.3,4533.2,0.7366]
[1759962181072,3.60472,4533.6,4533.2,0.7366]
[1759962181281,3.82572,4533.6,4533.5,0.5566]
[1759962181573,4.50295706,4533.6,4533.5,0.8654]
[1759962181776,4.50495458,4533.6,4533.5,0.8654]
[1759962184980,7.86000237,4533.6,4533.5,0.3088]
[1759962185184,0.39696,4533.1,4533.0,0.1288]
[1759962185481,0.83326,4533.1,4533.0,0.3497]
[1759962185779,0.83326,4533.1,4533.0,0.8654]
[1759962187573,1.07976,4533.1,4533.0,0.8654]
[1759962187769,3.93024906,4533.1,4533.0,0.8654]
[1759962187980,3.68374906,4533.1,4533.0,0.8654]
[1759962192177,3.92964906,4533.1,4533.0,0.3088]
[1759962192379,4.39657494,4533.1,4533.0,0.5194]
[1759962192885,3.92964906,4533.1,4533.0,0.6522]
[1759962193076,4.39659578,4533.1,4533.0,0.6522]
[1759962194282,4.15069578,4533.1,4533.0,0.8667]
[1759962194582,0.81575,4533.2,4533.1,0.7386]
[1759962194782,1.28278531,4533.2,4533.1,0.7386]
[1759962197188,1.52868531,4533.2,4533.1,0.7386]
[1759962197490,0.81579,4532.7,4532.6,0.9596]
[1759962197783,0.4188,4532.7,4532.6,0.9596]
[1759962197988,3.99453533,4532.7,4532.6,0.7386]
[1759962198189,4.21553533,4532.7,4532.6,0.3135]
[1759962198383,4.21553533,4532.7,4532.2,3.7319]
[1759962198384,0.81583,4532.3,4532.2,3.7319]
[1759962198581,0.81583,4532.3,4532.2,3.9464]
[1759962199688,0.81583,4532.3,4532.2,0.7386]
[1759962201792,0.81583,4532.3,4532.2,0.5241]
[1759962201793,1.06173,4532.3,4532.2,0.5241]
[1759962202491,0.81583,4532.3,4532.2,0.5241]
[1759962202688,0.81583,4532.3,4532.2,0.3135]
[1759962202689,3.86712862,4532.3,4532.2,0.3135]
[1759962203086,4.33449859,4532.3,4532.2,0.3135]
[1759962203281,4.55549859,4532.3,4532.2,0.3135]
[1759962203587,1.06174,4532.1,4532.0,0.3135]
[1759962203797,2.67539028,4532.1,4532.0,0.3135]
[1759962204006,0.39707,4531.8,4531.7,0.221]
[1759962204293,1.06177,4531.8,4531.7,0.7451]
[1759962204493,3.98884155,4531.8,4531.7,0.7451]
[1759962204892,3.98884155,4531.8,4531.7,0.5241]
[1759962205498,3.98884155,4531.8,4531.7,0.3135]
[1759962206295,3.98884155,4531.8,4531.7,0.5241]
[1759962207489,3.53584155,4531.8,4531.7,0.7386]
[1759962209594,3.53584155,4531.8,4531.7,1.13568]
[1759962210000,3.32414155,4531.8,4531.7,1.13568]
[1759962211297,2.92707155,4531.8,4531.7,1.13568]
[1759962211602,3.2078,4532.4,4532.3,0.7386]
[1759962211898,6.09626107,4532.4,4532.3,0.7386]
[1759962212299,6.49328107,4532.4,4532.3,0.7386]
[1759962212695,6.49328107,4532.4,4532.3,1.13563]
[1759962213203,0.60863,4533.5,4533.4,0.4251]
[1759962213402,0.60863,4533.5,4533.4,0.7386]
[1759962213700,3.13643579,4533.5,4533.4,0.7386]
[1759962213896,0.2117,4533.5,4533.4,0.7386]
[1759962214891,0.4188,4533.5,4533.4,0.7386]
[1759962215097,0.6647,4533.2,4533.1,0.5241]
[1759962215797,4.05334224,4533.2,4533.1,0.3135]
[1759962216002,0.4188,4533.0,4532.9,0.3135]
[1759962216202,0.8857,4533.0,4532.9,0.3135]
[1759962216402,0.2071,4532.7,4532.5,0.1328]
[1759962216604,1.21866929,4532.6,4532.5,0.3434]
[1759962216899,1.46456929,4532.6,4532.5,0.3434]
[1759962217105,1.46456929,4532.6,4532.5,0.6569]
[1759962217995,1.46456929,4532.6,4532.5,0.4463]
[1759962218410,0.6647,4532.6,4532.5,0.4463]
[1759962218609,1.46456929,4532.6,4532.5,0.4463]
[1759962218903,1.46456929,4532.6,4532.5,0.3135]
[1759962220796,0.6635,4532.2,4532.1,0.7541]
[1759962220996,1.46336929,4532.2,4532.1,0.7541]
[1759962221399,0.6635,4532.2,4532.1,0.7541]
[1759962221605,0.4176,4532.2,4532.1,0.9718]
[1759962221803,0.6635,4532.2,4532.1,0.7541]
[1759962221994,0.6635,4532.2,4532.1,0.3066]
[1759962222200,0.6635,4531.9,4531.8,3.7409]
[1759962222401,0.85879256,4531.9,4531.8,3.7409]
[1759962222895,1.25585256,4531.9,4531.8,3.7409]
[1759962223095,0.85879256,4531.9,4531.8,3.7409]
[1759962223903,0.85879256,4531.9,4531.8,3.9586]
[1759962225308,3.68266585,4531.9,4531.8,3.9586]
[1759962226908,3.68266585,4531.9,4531.8,3.5144]
[1759962228104,3.68266585,4531.9,4531.8,3.7281]
[1759962229706,3.62374258,4531.9,4531.8,3.9339]
[1759962231009,4.02080258,4531.9,4531.8,3.9339]
[1759962233408,4.02080258,4531.9,4531.8,0.7261]
[1759962234106,4.02080258,4531.9,4531.8,0.5203]
[1759962235812,4.02080258,4531.9,4531.8,0.3066]
[1759962240705,4.02080258,4531.9,4531.8,0.7261]
[1759962241412,4.02080258,4531.9,4531.8,0.5203]
[1759962241906,7.22860258,4531.9,4531.8,0.3066]
[1759962242106,6.42873329,4531.9,4531.8,0.3066]
[1759962242313,7.22860258,4531.9,4531.8,0.3066]
[1759962243505,0.39709,4531.6,4531.5,0.4601]
[1759962243713,0.3971,4531.5,4531.4,0.0022294]
[1759962243916,0.86626842,4531.5,4531.4,0.0022294]
[1759962244217,3.72206207,4531.5,4531.4,0.0022294]
[1759962247423,0.3972,4530.3,4530.2,0.3273]